[Event "1st Bangalore GM-Open-A 2024"]
[Site "Bangalore"]
[Date "2024.01.23"]
[Round "7.25"]
[White "Teterev, Vitaly"]
[Black "Fawzy, Adham"]
[Result "0-1"]
[ECO "B31"]
[WhiteElo "2288"]
[BlackElo "2522"]
[Annotator "RC"]
[PlyCount "110"]
[EventDate "2024.01.20"]
[EventType "swiss"]
[EventCountry "IND"]
[SourceTitle "playchess.com"]
[Source "ChessBase"]
[SourceQuality "1"]
[TimeControl "5400+30"]

1. e4 {[%emt 0:00:07]} c5 {[%emt 0:01:12]} 2. Nf3 {[%emt 0:00:07]} Nc6 {[%emt 0:00:21]} 3. Bb5 {[%emt 0:00:31]} g6 {[%emt 0:00:09]} 4. O-O {[%emt 0:00:29]} Bg7 {[%emt 0:00:11]} 5. c3 {[%emt 0:00:19]} Nf6 {[%emt 0:00:34]} 6. Re1 {[%emt 0:00:41]} O-O {[%emt 0:00:27]} 7. d4 {[%emt 0:00:40]} a6 {[%emt 0:00:49]} 8. Bxc6 {[%emt 0:08:01]} dxc6 {[%emt 0:00:49]} 9. Qc2 {[%emt 0:09:06]} Bg4 {[%emt 0:07:35]} 10. Nbd2 {[%emt 0:06:40]} cxd4 {[%emt 0:04:38]} 11. cxd4 {[%emt 0:00:27]} e5 {[%emt 0:08:57]} 12. Nxe5 {[%emt 0:10:42]} Qxd4 {[%emt 0:00:42]} 13. Ndf3 {[%emt 0:02:14]} Qb4 {[%emt 0:11:29]} 14. Bd2 {[%emt 0:12:25]} Qb6 {[%emt 0:00:55]} 15. Be3 {[%emt 0:02:58]} Qc7 {[%emt 0:00:39]} 16. Bc5 {[%emt 0:07:05]} Rfd8 {[%emt 0:09:29]} 17. h3 {[%emt 0:03:45]} Be6 {[%emt 0:03:14]} 18. Nc4 {[%emt 0:03:51]} Bxc4 {[%emt 0:03:06]} 19. Qxc4 {[%emt 0:00:01]} Nd7 {[%emt 0:00:03]} 20. Ba3 {[%emt 0:05:28]} b5 {[%emt 0:03:25]} 21. Qc2 {[%emt 0:00:32]} a5 {[%emt 0:10:25]} 22. Be7 {[%emt 0:02:28]} Re8 {[%emt 0:02:54]} 23. Bh4 {[%emt 0:02:07]} c5 {[%emt 0:06:27]} 24. Rad1 {[%emt 0:03:36]} c4 {[%emt 0:02:26]} 25. Rd5 {[%emt 0:02:19]} Qc6 {[%emt 0:03:26]} 26. Red1 {[%emt 0:02:25]} Nc5 {[%emt 0:01:34]} 27. e5 {[%emt 0:03:25]} Rac8 {[%emt 0:01:51]} 28. b3 {[%emt 0:04:50]} Nd3 {[%emt 0:01:49]} 29. bxc4 {[%emt 0:00:25]} Nb4 {[%emt 0:03:57]} 30. Qb2 {[%emt 0:02:24]} Qxc4 {[%emt 0:05:11]} 31. R5d2 {[%emt 0:00:11]} Nc6 {[%emt 0:01:54]} 32. Rc2 {[%emt 0:01:04]} Nxe5 {[%emt 0:01:17]} 33. Rxc4 {[%emt 0:01:07]} Nxf3+ {[%emt 0:00:01]} 34. gxf3 {[%emt 0:00:13]} Bxb2 {[%emt 0:00:02]} 35. Rxc8 {[%emt 0:01:10]} Rxc8 {[%emt 0:00:01]} 36. Rd5 {[%emt 0:00:08]} Rb8 {[%emt 0:00:52]} 37. Bg3 {[%emt 0:02:32]} Rb7 {[%emt 0:00:01]} 38. Be5 {[%emt 0:01:00]} Bxe5 {[%emt 0:00:02]} 39. Rxe5 {[%emt 0:00:04]} a4 {[%emt 0:00:28]} 40. a3 {[%emt 0:00:11]} b4 {[%emt 0:00:32]} 41. axb4 {[%emt 0:00:02]} Rxb4 {[%emt 0:00:01]} 42. Ra5 {[%emt 0:00:06]} h5 {[%emt 0:00:23]} 43. Kf1 {[%emt 0:00:22]} Kg7 {[%emt 0:01:01]} 44. Ke2 {[%emt 0:00:04]} f6 {[%emt 0:00:10]} 45. Ke3 {[%emt 0:00:37]} g5 {[%emt 0:00:02]} 46. Ra7+ {[%emt 0:01:15]} Kg6 {[%emt 0:00:06]} 47. Ra5 {[%emt 0:00:06]} Rf4 {[%emt 0:00:35]} 48. Ra8 {[%emt 0:00:43]} h4 {[%emt 0:00:28]} 49. Ra5 {[%emt 0:00:20]} Kf7 {[%emt 0:00:03]} 50. Ra6 {[%emt 0:01:10]} Ke7 {[%emt 0:00:02]} 51. Rc6 {[%emt 0:00:33]} Kd7 {[%emt 0:00:12]} 52. Rc5 {[%emt 0:00:13]} Kd6 {[%emt 0:00:22]} 53. Rc8 {[%emt 0:00:03]} Kd5 {[%emt 0:00:29]} 54. Rc7 {[%emt 0:00:10]} Rb4 {[%emt 0:00:49]} 55. Rf7 {[%emt 0:01:54]} a3 {[%emt 0:00:37]} 0-1

[Event "1st Bangalore GM-Open-A 2024"]
[Site "Bangalore"]
[Date "2024.01.23"]
[Round "7.26"]
[White "Apoorv Kamble"]
[Black "Das, Sayantan"]
[Result "0-1"]
[ECO "B32"]
[WhiteElo "2308"]
[BlackElo "2514"]
[Annotator "TA"]
[PlyCount "92"]
[EventDate "2024.01.20"]
[EventType "swiss"]
[EventCountry "IND"]
[SourceTitle "playchess.com"]
[Source "ChessBase"]
[SourceQuality "1"]
[TimeControl "5400+30"]

{[%evp 14,92,12,24,28,31,41,20,39,31,23,-77,-76,-72,-77,-83,-64,-56,-59,-74,-32,-87,-79,-81,-78,-131,-131,-129,-128,-112,-84,-83,-62,-90,-87,-67,-62,-66,-63,-103,-77,-147,-79,-125,-130,-193,-196,-191,-173,-214,-195,-209,-190,-224,-222,-227,-208,-324,-333,-294,-303,-293,-308,-340,-393,-377,-370,-450,-418,-779,-682,-945,-875,-1283,-1171,-7192,-5631,-29962,-29963,-29953,-11477]} 1. e4 {[%emt 0:00:05]} c5 {[%emt 0:00:17]} 2. Nf3 {[%emt 0:00:11]} Nc6 {[%emt 0:00:15]} 3. d4 {[%emt 0:00:13]} cxd4 {[%emt 0:00:07]} 4. Nxd4 {[%emt 0:00:08]} e5 {[%emt 0:00:11]} 5. Nb5 {[%emt 0:00:49]} d6 {[%emt 0:00:06]} 6. c4 {[%emt 0:02:20]} Be6 {[%emt 0:02:33]} 7. N1c3 {[%emt 0:03:55]} a6 {[%emt 0:00:18]} 8. Na3 {[%emt 0:00:05]} g6 {[%emt 0:01:11]} 9. Be3 {[%emt 0:02:34]} Nf6 {[%emt 0:02:10]} 10. Be2 {[%emt 0:01:30] Prevents Ng4} Bg7 {[%emt 0:00:48] The position is equal.} 11. O-O {[%emt 0:03:26]} O-O {[%emt 0:00:53][%cal Oc6d4]} 12. c5 {[%emt 0:04:27] [#]} (12. f3 $11 {keeps the balance.}) 12... Nd4 $1 $17 {[%emt 0:07:49]} 13. cxd6 {[%emt 0:11:22]} Qxd6 {[%emt 0:04:13]} 14. Nc4 {[%emt 0:10:31]} Qc7 {[%emt 0:05:23]} 15. Bxd4 {[%emt 0:05:54]} exd4 {[%emt 0:01:38]} ({Of course not} 15... Bxc4 16. Be3 $11) 16. Qxd4 {[%emt 0:02:30]} b5 {[%emt 0:19:56][%cal Re6c4]} 17. Qd6 {[%emt 0:04:47]} (17. Qb6 $15 Qa7 18. Qxa7 Rxa7 19. Nd6) 17... Qd8 {[%emt 0:13:14]} 18. Qxd8 {[%emt 0:01:37]} Raxd8 {[%emt 0:00:41]} 19. Na5 {[%emt 0:09:36] [#]} ({White should try} 19. Ne3) 19... Rd2 $1 {[%emt 0:02:58][%cal Ob5b4] ...b4! is the strong threat.} (19... b4 20. Nd1 Nxe4 21. Nc6) 20. Bf3 {[%emt 0:16:32]} Rxb2 {[%emt 0:00:34] Black has more active pieces.} 21. Nd5 {[%emt 0:03:13]} Nd7 {[%emt 0:04:12]} 22. Rfb1 {[%emt 0:02:33] [#]} Ne5 $1 {[%emt 0:13:32]} 23. Rxb2 {[%emt 0:04:03] aiming for Rab1.} Nxf3+ {[%emt 0:00:03]} 24. gxf3 {[%emt 0:00:02][%cal Oa1b1] Rab1! would now be deadly.} Bxb2 {[%emt 0:00:08]} 25. Rb1 {[%emt 0:01:06]} Be5 {[%emt 0:02:11]} 26. Nb3 {[%emt 0:07:03] Black converts the advantage convincingly.} Bd6 {[%emt 0:04:19]} 27. Nd4 {[%emt 0:02:01]} (27. Rd1 $142) 27... Bh3 {[%emt 0:02:15]} (27... Bxd5 $142 28. exd5 Re8) 28. Rc1 {[%emt 0:00:41] [#]} (28. Rd1 $142) 28... Kg7 $1 {[%emt 0:01:50]} 29. Rc6 {[%emt 0:00:44] [#]} (29. Nb6 $17 {was necessary.}) 29... Rc8 $1 $19 {[%emt 0:02:59]} 30. Rxc8 {[%emt 0:00:51]} Bxc8 {[%emt 0:00:02][%mdl 4096] Endgame. KBB-KNN} 31. Kg2 {[%emt 0:00:01]} Bb7 {[%emt 0:01:03]} 32. Ne3 {[%emt 0:00:37]} Kf6 {[%emt 0:01:05] Inhibits Ndf5.} 33. Ng4+ {[%emt 0:00:49]} Ke7 {[%emt 0:00:15]} 34. h3 {[%emt 0:00:16]} Bc5 {[%emt 0:01:02]} 35. Nc2 {[%emt 0:00:31]} (35. Nb3 {was called for.} Bb6 36. Kg3) 35... Ke6 {[%emt 0:00:26]} ({Don't play} 35... f5 36. exf5 gxf5 37. Ne5) 36. Nge3 {[%emt 0:00:13]} a5 {[%emt 0:00:16]} 37. Ne1 {[%emt 0:00:31]} b4 {[%emt 0:01:30]} 38. Nc4 {[%emt 0:00:24]} a4 {[%emt 0:00:35]} 39. Nd3 {[%emt 0:00:00]} Bf8 {[%emt 0:01:04]} 40. Nf4+ {[%emt 0:00:54]} Kf6 {[%emt 0:01:11]} 41. Kf1 {[%emt 0:01:23]} (41. h4 $142) 41... Ba6 {[%emt 0:01:46]} 42. Nd5+ {[%emt 0:00:00]} Kg5 {[%emt 0:00:09]} 43. Nde3 {[%emt 0:00:09]} a3 {[%emt 0:00:22] Strongly threatening ...Kf4.} 44. f4+ {[%emt 0:01:13]} Kxf4 {[%emt 0:00:24] ( -> ...Bxc4+)} 45. Ke1 {[%emt 0:00:21]} Bxc4 {[%emt 0:00:29]} 46. Nxc4 {[%emt 0:00:02]} b3 {[%emt 0:00:07] Weighted Error Value: White=0.81/Black=0.07 (flawless) .  Mistake:       	White=8     	Black=1      Inaccurate:     	White=1     	Black=1      OK:         	White=12    	Black=15     Best:        	White=1     	Black=3      Strong:       	---       	Black=1} 0-1

[Event "1st Bangalore GM-Open-A 2024"]
[Site "Bangalore"]
[Date "2024.01.23"]
[Round "7.27"]
[White "Goutham Krishna H"]
[Black "Stany, G.A."]
[Result "1/2-1/2"]
[ECO "D11"]
[WhiteElo "2288"]
[BlackElo "2459"]
[Annotator "RC"]
[PlyCount "62"]
[EventDate "2024.01.20"]
[EventType "swiss"]
[EventCountry "IND"]
[SourceTitle "playchess.com"]
[Source "ChessBase"]
[SourceQuality "1"]
[TimeControl "5400+30"]

1. d4 {[%emt 0:11:43]} d5 {[%emt 0:00:30]} 2. Nf3 {[%emt 0:00:47]} Nf6 {[%emt 0:00:16]} 3. c4 {[%emt 0:00:04]} c6 {[%emt 0:00:10]} 4. Nbd2 {[%emt 0:00:08]} Bf5 {[%emt 0:00:53]} 5. Nh4 {[%emt 0:00:06]} Be4 {[%emt 0:00:14]} 6. f3 {[%emt 0:00:12]} Bg6 {[%emt 0:00:19]} 7. Qb3 {[%emt 0:00:03]} Qc7 {[%emt 0:00:20]} 8. cxd5 {[%emt 0:00:13]} cxd5 {[%emt 0:00:16]} 9. Nxg6 {[%emt 0:00:48]} hxg6 {[%emt 0:00:15]} 10. e4 {[%emt 0:00:02]} dxe4 {[%emt 0:00:51]} 11. fxe4 {[%emt 0:00:02]} e6 {[%emt 0:00:19]} 12. e5 {[%emt 0:00:02]} Nd5 {[%emt 0:00:23]} 13. Bc4 {[%emt 0:00:07]} Nc6 {[%emt 0:06:05]} 14. Bxd5 {[%emt 0:03:54]} exd5 {[%emt 0:00:48]} 15. Nf3 {[%emt 0:01:41]} Bb4+ {[%emt 0:02:34]} 16. Kf2 {[%emt 0:04:13]} Qd7 {[%emt 0:18:22]} 17. Be3 {[%emt 0:27:09]} Ba5 {[%emt 0:18:50]} 18. Rhf1 {[%emt 0:09:59]} O-O-O {[%emt 0:01:16]} 19. Kg1 {[%emt 0:01:07]} f6 {[%emt 0:19:33]} 20. Rac1 {[%emt 0:02:41]} Kb8 {[%emt 0:04:49]} 21. Ne1 {[%emt 0:04:57]} Bb6 {[%emt 0:01:24]} 22. exf6 {[%emt 0:01:42]} gxf6 {[%emt 0:00:49]} 23. Rxf6 {[%emt 0:03:36]} Nxd4 {[%emt 0:03:25]} 24. Qd3 {[%emt 0:02:24]} Qg4 {[%emt 0:02:09]} 25. Nf3 {[%emt 0:01:04]} Rd6 {[%emt 0:05:42]} 26. h3 {[%emt 0:06:25]} Qg3 {[%emt 0:02:19]} 27. Rf7 {[%emt 0:01:23]} Nxf3+ {[%emt 0:04:42]} 28. Rxf3 {[%emt 0:00:03]} Qe5 {[%emt 0:01:03]} 29. Bxb6 {[%emt 0:00:52]} Rxb6 {[%emt 0:00:04]} 30. b3 {[%emt 0:00:41]} Rd8 {[%emt 0:00:29]} 31. Re3 {[%emt 0:01:05]} Qd6 {[%emt 0:01:37]} 1/2-1/2

[Event "1st Bangalore GM-Open-A 2024"]
[Site "Bangalore"]
[Date "2024.01.23"]
[Round "7.28"]
[White "Srihari L"]
[Black "Sharan, Rao"]
[Result "1-0"]
[ECO "C05"]
[WhiteElo "2288"]
[BlackElo "2433"]
[Annotator "RC"]
[PlyCount "89"]
[EventDate "2024.01.20"]
[EventType "swiss"]
[EventCountry "IND"]
[SourceTitle "playchess.com"]
[Source "ChessBase"]
[SourceQuality "1"]
[TimeControl "5400+30"]

1. e4 {[%emt 0:00:04]} e6 {[%emt 0:00:04]} 2. d4 {[%emt 0:00:04]} d5 {[%emt 0:00:03]} 3. Nc3 {[%emt 0:00:05]} Nf6 {[%emt 0:00:03]} 4. e5 {[%emt 0:00:05]} Nfd7 {[%emt 0:00:05]} 5. Nce2 {[%emt 0:00:10]} c5 {[%emt 0:00:05]} 6. c3 {[%emt 0:00:11]} cxd4 {[%emt 0:02:38]} 7. cxd4 {[%emt 0:00:16]} Nc6 {[%emt 0:00:06]} 8. f4 {[%emt 0:01:13]} Qb6 {[%emt 0:00:06]} 9. Nf3 {[%emt 0:00:23]} Be7 {[%emt 0:00:20]} 10. h4 {[%emt 0:02:49]} f6 {[%emt 0:01:38]} 11. Bd2 {[%emt 0:01:55]} O-O {[%emt 0:01:10]} 12. Bc3 {[%emt 0:00:00]} Rf7 {[%emt 0:03:22]} 13. Ng3 {[%emt 0:07:06]} Nf8 {[%emt 0:03:20]} 14. Bd3 {[%emt 0:02:40]} Bd7 {[%emt 0:01:56]} 15. h5 {[%emt 0:09:44]} Rc8 {[%emt 0:02:39]} 16. Qd2 {[%emt 0:06:31]} a6 {[%emt 0:07:42]} 17. Nf1 {[%emt 0:07:08]} Qc7 {[%emt 0:19:58]} 18. Ne3 {[%emt 0:17:28]} Na7 {[%emt 0:02:10]} 19. g4 {[%emt 0:05:21]} Nb5 {[%emt 0:02:44]} 20. Bg6 {[%emt 0:09:09]} hxg6 {[%emt 0:13:53]} 21. hxg6 {[%emt 0:01:36]} Nxg6 {[%emt 0:00:06]} 22. Qh2 {[%emt 0:00:30]} Rff8 {[%emt 0:11:57]} 23. f5 {[%emt 0:02:54]} Nf4 {[%emt 0:02:23]} 24. Qxf4 {[%emt 0:07:26]} Nxc3 {[%emt 0:00:07]} 25. bxc3 {[%emt 0:02:40]} Qxc3+ {[%emt 0:00:09]} 26. Kf2 {[%emt 0:00:04]} fxe5 {[%emt 0:06:51]} 27. Nxe5 {[%emt 0:03:33]} Qd2+ {[%emt 0:02:31]} 28. Kf3 {[%emt 0:05:10]} exf5 {[%emt 0:02:05]} 29. g5 {[%emt 0:01:36]} Bxg5 {[%emt 0:10:46]} 30. Qxg5 {[%emt 0:00:05]} Rc2 {[%emt 0:02:08]} 31. Qh4 {[%emt 0:02:55]} Qe2+ {[%emt 0:01:40]} 32. Kf4 {[%emt 0:00:02]} Qf2+ {[%emt 0:00:36]} 33. Qxf2 {[%emt 0:00:02]} Rxf2+ {[%emt 0:00:05]} 34. Kg3 {[%emt 0:00:33]} Rd2 {[%emt 0:00:42]} 35. Nxd5 {[%emt 0:00:59]} f4+ {[%emt 0:00:25]} 36. Kh4 {[%emt 0:03:31]} g5+ {[%emt 0:00:23]} 37. Kxg5 {[%emt 0:00:18]} Rg2+ {[%emt 0:01:05]} 38. Kh6 {[%emt 0:00:46]} Rd8 {[%emt 0:00:22]} 39. Nxf4 {[%emt 0:01:15]} Rd2 {[%emt 0:01:02]} 40. Rag1+ {[%emt 0:00:22]} Kf8 {[%emt 0:00:01]} 41. Nfg6+ {[%emt 0:00:46]} Kg8 {[%emt 0:00:33]} 42. Ne7+ {[%emt 0:00:40]} Kf8 {[%emt 0:00:02]} 43. Rg7 {[%emt 0:00:47]} Be6 {[%emt 0:00:25]} 44. N7g6+ {[%emt 0:00:06]} Ke8 {[%emt 0:00:04]} 45. Re7# {[%emt 0:00:03]} 1-0

[Event "1st Bangalore GM-Open-A 2024"]
[Site "Bangalore"]
[Date "2024.01.23"]
[Round "7.29"]
[White "Adireddy Arjun"]
[Black "Ajay Santhosh Parvathareddy"]
[Result "0-1"]
[ECO "B90"]
[WhiteElo "2415"]
[BlackElo "2204"]
[Annotator "TA"]
[PlyCount "76"]
[EventDate "2024.01.20"]
[EventType "swiss"]
[EventCountry "IND"]
[SourceTitle "playchess.com"]
[Source "ChessBase"]
[SourceQuality "1"]
[TimeControl "5400+30"]

{[%evp 25,76,3,10,10,0,6,2,6,0,2,14,0,16,-5,0,0,0,-2,0,-25,-15,-9,-16,-19,-13,-189,-192,-189,-194,-193,-188,-234,-234,-228,-217,-212,-204,-228,-223,-292,-263,-264,-270,-508,-525,-641,-612,-764,-720,-598,-530,-29998,-29999]} 1. e4 {[%emt 0:00:13]} c5 {[%emt 0:00:04]} 2. Nf3 {[%emt 0:00:11]} d6 {[%emt 0:00:05]} 3. d4 {[%emt 0:00:06]} cxd4 {[%emt 0:00:04]} 4. Nxd4 {[%emt 0:00:07]} Nf6 {[%emt 0:00:05]} 5. Nc3 {[%emt 0:00:09]} a6 {[%emt 0:00:04]} 6. Be3 {[%emt 0:00:21]} Ng4 {[%emt 0:00:03]} 7. Bc1 {[%emt 0:00:10]} Nf6 {[%emt 0:00:04]} 8. f3 {[%emt 0:02:02]} e5 {[%emt 0:01:29]} 9. Nb3 {[%emt 0:00:08]} Be6 {[%emt 0:00:05]} 10. Be3 {[%emt 0:00:08]} Be7 {[%emt 0:00:05]} 11. Qd2 {[%emt 0:00:08]} h5 {[%emt 0:00:03]} 12. O-O-O {[%emt 0:01:30]} Nbd7 {[%emt 0:00:04]} 13. Kb1 {[%emt 0:09:55]} Rc8 {[%emt 0:00:06]} 14. Nd5 {[%emt 0:03:52]} Nxd5 {[%emt 0:00:20]} 15. exd5 {[%emt 0:00:09]} Bf5 {[%emt 0:00:08] OK} 16. Bd3 {[%emt 0:01:00] OK. The position is equal.} Bxd3 {[%emt 0:00:08] OK} 17. Qxd3 {[%emt 0:00:08]} Bg5 {[%emt 0:00:04] OK} 18. Bf2 {[%emt 0:15:58] OK} Qc7 {[%emt 0:00:14] OK} 19. h4 {[%emt 0:00:31]} Bf4 {[%emt 0:00:33]} 20. g3 {[%emt 0:03:16]} Bh6 {[%emt 0:00:04] OK} 21. g4 {[%emt 0:10:31] Hoping for g5.} Bf4 {[%emt 0:00:07] OK} 22. Nd2 {[%emt 0:01:16]} hxg4 {[%emt 0:15:15]} 23. fxg4 {[%emt 0:00:09]} Bxd2 {[%emt 0:00:18]} 24. Qxd2 {[%emt 0:05:51]} Nf6 {[%emt 0:02:33] OK} 25. g5 {[%emt 0:19:23] White does not recover from this. Loses game (1.8)} (25. Rhg1 $1 $11 {and White stays safe.}) 25... Ne4 $19 {[%emt 0:00:04] Best (Easy)} 26. Qe2 {[%emt 0:00:05] [#] OK} Qxc2+ {[%emt 0:00:23][%mdl 512] Brilliant} 27. Qxc2 {[%emt 0:00:08]} Rxc2 {[%emt 0:00:03]} 28. Kxc2 {[%emt 0:00:23] Mistake (0.5)} (28. Be1 {was worth a try.} Rc7 29. Ba5) 28... Nxf2 {[%emt 0:00:05] Best (Easy)} 29. h5 {[%emt 0:04:08] OK} Nxd1 {[%emt 0:14:28]} 30. Kxd1 {[%emt 0:00:08][%mdl 4096] Endgame. [#] KR-KR} f6 $1 {[%emt 0:01:23] OK} 31. gxf6 {[%emt 0:06:48]} gxf6 {[%emt 0:00:15]} 32. Ke2 {[%emt 0:03:49] Inaccurate} Kf7 {[%emt 0:04:40]} 33. Kf3 {[%emt 0:01:12] OK} f5 {[%emt 0:00:15] OK} 34. Rc1 $2 {[%emt 0:02:35] Mistake (2.4)} (34. Kg2 {was called for.}) 34... Rxh5 {[%emt 0:00:41] Best} 35. Rc7+ {[%emt 0:00:07]} Kf6 {[%emt 0:00:04] OK} 36. Rxb7 {[%emt 0:00:09]} e4+ {[%emt 0:00:40]} 37. Ke3 {[%emt 0:00:38]} Ke5 {[%emt 0:00:07] Strongly threatening ...f4+.} 38. Rb6 {[%emt 0:00:28]} Rh2 {[%emt 0:00:06] Weighted Error Value: White=0.85/Black=0.06 (flawless) . Best.  Loses game:     	White=1     	---        Mistake:       	White=2     	---        Inaccurate:     	White=1     	---        OK:         	White=5     	Black=10     Best:        	---       	Black=4      Brilliant:      	---       	Black=1} 0-1

[Event "1st Bangalore GM-Open-A 2024"]
[Site "Bangalore"]
[Date "2024.01.23"]
[Round "7.30"]
[White "Aakash Sharadchandra, Dalvi"]
[Black "Vishnu Prasanna. V"]
[Result "1/2-1/2"]
[ECO "E43"]
[WhiteElo "2180"]
[BlackElo "2413"]
[Annotator "RC"]
[PlyCount "92"]
[EventDate "2024.01.20"]
[EventType "swiss"]
[EventCountry "IND"]
[SourceTitle "playchess.com"]
[Source "ChessBase"]
[SourceQuality "1"]
[TimeControl "5400+30"]

1. d4 {[%emt 0:02:29]} Nf6 {[%emt 0:00:30]} 2. c4 {[%emt 0:00:12]} e6 {[%emt 0:00:06]} 3. Nf3 {[%emt 0:00:05]} h6 {[%emt 0:01:20]} 4. Nc3 {[%emt 0:00:59]} Bb4 {[%emt 0:00:07]} 5. Bd2 {[%emt 0:02:28]} O-O {[%emt 0:01:45]} 6. e3 {[%emt 0:00:17]} b6 {[%emt 0:02:08]} 7. Bd3 {[%emt 0:00:13]} Bb7 {[%emt 0:00:07]} 8. O-O {[%emt 0:00:13]} d6 {[%emt 0:01:00]} 9. a3 {[%emt 0:01:01]} Bxc3 {[%emt 0:00:15]} 10. Bxc3 {[%emt 0:00:02]} Ne4 {[%emt 0:01:43]} 11. Be1 {[%emt 0:00:06]} c5 {[%emt 0:03:11]} 12. b4 {[%emt 0:25:22]} Nd7 {[%emt 0:03:12]} 13. dxc5 {[%emt 0:04:27]} dxc5 {[%emt 0:01:56]} 14. Qc2 {[%emt 0:05:09]} Nd6 {[%emt 0:03:06]} 15. Bc3 {[%emt 0:02:24]} Qe7 {[%emt 0:06:36]} 16. b5 {[%emt 0:02:26]} e5 {[%emt 0:05:17]} 17. Be2 {[%emt 0:02:28]} Rfd8 {[%emt 0:03:56]} 18. a4 {[%emt 0:03:06]} a5 {[%emt 0:04:39]} 19. Bb2 {[%emt 0:04:31]} e4 {[%emt 0:01:50]} 20. Nd2 {[%emt 0:00:36]} Ne5 {[%emt 0:01:02]} 21. Qc3 {[%emt 0:05:51]} f6 {[%emt 0:01:50]} 22. Rfd1 {[%emt 0:00:47]} Rd7 {[%emt 0:03:53]} 23. Nf1 {[%emt 0:04:15]} Qe6 {[%emt 0:02:49]} 24. Rac1 {[%emt 0:00:12]} Rad8 {[%emt 0:00:38]} 25. Ng3 {[%emt 0:02:48]} Ndf7 {[%emt 0:13:15]} 26. Rxd7 {[%emt 0:03:26]} Rxd7 {[%emt 0:03:09]} 27. Qc2 {[%emt 0:01:05]} Nd3 {[%emt 0:01:43]} 28. Rd1 {[%emt 0:00:21]} Nb4 {[%emt 0:00:33]} 29. Qb1 {[%emt 0:01:37]} Rxd1+ {[%emt 0:00:15]} 30. Qxd1 {[%emt 0:00:09]} Bc8 {[%emt 0:01:42]} 31. h3 {[%emt 0:06:19]} Qe7 {[%emt 0:01:48]} 32. Bg4 {[%emt 0:04:54]} Be6 {[%emt 0:01:03]} 33. Nf5 {[%emt 0:03:26]} Qe8 {[%emt 0:03:41]} 34. Ng3 {[%emt 0:07:59]} Nd3 {[%emt 0:00:29]} 35. Bxf6 {[%emt 0:01:50]} Nd6 {[%emt 0:05:19]} 36. Bc3 {[%emt 0:01:37]} Bxc4 {[%emt 0:01:20]} 37. Nf5 {[%emt 0:01:16]} Nxf5 {[%emt 0:04:14]} 38. Bxf5 {[%emt 0:00:02]} h5 {[%emt 0:00:39]} 39. f3 {[%emt 0:01:40]} Bd5 {[%emt 0:01:17]} 40. fxe4 {[%emt 0:00:38]} Bxe4 {[%emt 0:00:05]} 41. Bxe4 {[%emt 0:00:50]} Qxe4 {[%emt 0:00:06]} 42. Qxh5 {[%emt 0:00:52]} Qxe3+ {[%emt 0:00:11]} 43. Kh2 {[%emt 0:00:11]} Qf4+ {[%emt 0:00:34]} 44. Kg1 {[%emt 0:00:50]} Qe3+ {[%emt 0:01:45]} 45. Kh2 {[%emt 0:00:19]} Qf4+ {[%emt 0:04:58]} 46. Kg1 {[%emt 0:00:06]} Qe3+ {[%emt 0:01:06]} 1/2-1/2

[Event "1st Bangalore GM-Open-A 2024"]
[Site "Bangalore"]
[Date "2024.01.23"]
[Round "7.31"]
[White "De Silva, L M S T"]
[Black "Frayna, Janelle Mae"]
[Result "1-0"]
[ECO "C43"]
[WhiteElo "2398"]
[BlackElo "2197"]
[Annotator "RC"]
[PlyCount "105"]
[EventDate "2024.01.20"]
[EventType "swiss"]
[EventCountry "IND"]
[SourceTitle "playchess.com"]
[Source "ChessBase"]
[SourceQuality "1"]
[TimeControl "5400+30"]

1. e4 {[%emt 0:00:04]} e5 {[%emt 0:03:54]} 2. Nf3 {[%emt 0:00:18]} Nf6 {[%emt 0:00:06]} 3. d4 {[%emt 0:00:17]} Nxe4 {[%emt 0:01:13]} 4. Bd3 {[%emt 0:00:09]} d5 {[%emt 0:00:13]} 5. Nxe5 {[%emt 0:00:57]} Nd7 {[%emt 0:03:26]} 6. Nxd7 {[%emt 0:01:53]} Bxd7 {[%emt 0:00:21]} 7. O-O {[%emt 0:00:56]} Bd6 {[%emt 0:00:40]} 8. Nc3 {[%emt 0:01:33]} Nxc3 {[%emt 0:01:42]} 9. bxc3 {[%emt 0:00:15]} O-O {[%emt 0:00:31]} 10. Qh5 {[%emt 0:02:42]} f5 {[%emt 0:00:22]} 11. Re1 {[%emt 0:01:41]} c6 {[%emt 0:01:40]} 12. Bg5 {[%emt 0:06:11]} Qc7 {[%emt 0:01:13]} 13. c4 {[%emt 0:03:24]} Be8 {[%emt 0:10:38]} 14. Qh3 {[%emt 0:18:50]} dxc4 {[%emt 0:02:14]} 15. Bxc4+ {[%emt 0:01:09]} Bf7 {[%emt 0:00:17]} 16. Bd3 {[%emt 0:01:50]} g6 {[%emt 0:03:05]} 17. Qh4 {[%emt 0:09:47]} Rfe8 {[%emt 0:02:39]} 18. Bf6 {[%emt 0:05:16]} Rxe1+ {[%emt 0:13:13]} 19. Rxe1 {[%emt 0:00:02]} Re8 {[%emt 0:00:27]} 20. Rxe8+ {[%emt 0:06:29]} Bxe8 {[%emt 0:00:02]} 21. Qh6 {[%emt 0:07:58]} Bf8 {[%emt 0:02:33]} 22. Qg5 {[%emt 0:03:50]} Bg7 {[%emt 0:08:46]} 23. Bxg7 {[%emt 0:01:11]} Qxg7 {[%emt 0:00:05]} 24. Qd8 {[%emt 0:01:18]} Kf8 {[%emt 0:06:39]} 25. h4 {[%emt 0:02:30]} Qe7 {[%emt 0:00:39]} 26. Qb8 {[%emt 0:00:07]} Qxh4 {[%emt 0:06:13]} 27. Qxa7 {[%emt 0:01:41]} Qe7 {[%emt 0:01:29]} 28. Qa5 {[%emt 0:08:43]} Bf7 {[%emt 0:01:00]} 29. c4 {[%emt 0:00:25]} f4 {[%emt 0:07:04]} 30. Qd2 {[%emt 0:00:50]} g5 {[%emt 0:01:36]} 31. Be2 {[%emt 0:03:53]} h5 {[%emt 0:03:38]} 32. d5 {[%emt 0:01:42]} cxd5 {[%emt 0:01:48]} 33. cxd5 {[%emt 0:00:03]} Bxd5 {[%emt 0:01:30]} 34. Qxd5 {[%emt 0:00:36]} Qxe2 {[%emt 0:00:04]} 35. Qf5+ {[%emt 0:00:11]} Ke8 {[%emt 0:02:55]} 36. Qc8+ {[%emt 0:00:51]} Ke7 {[%emt 0:05:40]} 37. Qxb7+ {[%emt 0:01:20]} Kf6 {[%emt 0:00:11]} 38. Qc6+ {[%emt 0:02:05]} Kg7 {[%emt 0:00:30]} 39. Qd7+ {[%emt 0:00:41]} Kg6 {[%emt 0:00:31]} 40. Qd6+ {[%emt 0:00:20]} Kh7 {[%emt 0:00:21]} 41. Qc7+ {[%emt 0:00:52]} Kg6 {[%emt 0:00:33]} 42. Qb6+ {[%emt 0:00:06]} Kg7 {[%emt 0:01:47]} 43. Qd4+ {[%emt 0:00:11]} Kg6 {[%emt 0:00:14]} 44. a4 {[%emt 0:00:25]} h4 {[%emt 0:00:31]} 45. Kh2 {[%emt 0:00:35]} Kf5 {[%emt 0:01:02]} 46. Qd7+ {[%emt 0:03:49]} Kg6 {[%emt 0:00:24]} 47. Qc6+ {[%emt 0:00:13]} Kg7 {[%emt 0:00:39]} 48. Qc7+ {[%emt 0:00:50]} Kf8 {[%emt 0:02:20]} 49. Qc5+ {[%emt 0:00:45]} Kf7 {[%emt 0:01:18]} 50. Qf5+ {[%emt 0:00:16]} Ke8 {[%emt 0:04:14]} 51. Qb5+ {[%emt 0:00:12]} Qxb5 {[%emt 0:00:10]} 52. axb5 {[%emt 0:00:01]} g4 {[%emt 0:00:05]} 53. f3 {[%emt 0:00:08]} 1-0